fUST/lending_fUST_20260118
["ID","MTS","AMOUNT","RATE_DAILY","PERIOD"]
[402376293,1768669840799,-500.0,0.00010673,2]
[402376295,1768669840809,-500.0,0.00010673,2]
[402376297,1768669840818,-200.90043421,0.00010673,2]
[402376299,1768669840828,-764.0,0.00010809,2]
[402376300,1768669840838,-500.0,0.00010809,2]
[402376302,1768669840847,-500.0,0.0001081,2]
[402376304,1768669840856,-151.33189923,0.0001081,2]
[402376305,1768669840865,-764.0,0.00010946,2]
[402376307,1768669840875,-500.0,0.00010946,2]
[402376309,1768669840885,-500.0,0.00010947,2]
[402376310,1768669840895,-500.0,0.00010947,2]
[402376312,1768669840904,-764.0,0.00011083,2]
[402376314,1768669840914,-500.0,0.00011083,2]
[402376315,1768669840923,-216.5089198,0.00011084,2]
[402376317,1768669840934,-420.0,0.00011134,2]
[402376319,1768669840943,-212.0,0.00011134,2]
[402376320,1768669840953,-1680.0,0.00011135,2]
[402376322,1768669840962,-221.06784928,0.00011204,2]
[402376324,1768669840971,-764.0,0.0001122,2]
[402376325,1768669840980,-500.0,0.0001122,2]
[402376327,1768669840990,-500.0,0.00011221,2]
[402376329,1768669840999,-764.0,0.00011357,2]
[402376330,1768669841009,-500.0,0.00011357,2]
[402376332,1768669841018,-764.0,0.00011494,2]
[402376334,1768669841030,-500.0,0.00011494,2]
[402376336,1768669841039,-500.0,0.00011495,2]
[402376337,1768669841048,-902.4595776,0.00011562,2]
[402376339,1768669841057,-764.0,0.00011631,2]
[402376341,1768669841066,-500.0,0.00011631,2]
[402376342,1768669841076,-764.0,0.00011768,2]
[402376344,1768669841085,-500.0,0.00011768,2]
[402376346,1768669841094,-500.0,0.00011769,2]
[402376347,1768669841103,-500.0,0.0001189,3]
[402376349,1768669841113,-309.56806716,0.000119,2]
[402376351,1768669841125,-764.0,0.00011905,2]
[402376352,1768669841134,-500.0,0.00011905,2]
[402376354,1768669841143,-764.0,0.00012042,2]
[402376356,1768669841153,-303.5153781,0.00012042,2]
[402376357,1768669841162,-500.0,0.00012043,2]
[402376359,1768669841171,-764.0,0.00012179,2]
[402376361,1768669841180,-587.0,0.00012246,2]
[402376362,1768669841189,-2351.0,0.00012249,2]
[402376364,1768669841199,-764.0,0.00012316,2]
[402376366,1768669841209,-500.0,0.00012317,2]
[402376367,1768669841218,-2084.85,0.00012329,2]
[402376369,1768669841227,-2966.41,0.00012329,2]
[402376371,1768669841237,-2472.01,0.00012329,2]
[402376372,1768669841247,-2060.0,0.00012329,2]
[402376374,1768669841257,-1716.67,0.00012329,2]
[402376376,1768669841266,-1430.56,0.00012329,2]
[402376377,1768669841276,-1192.13,0.00012329,2]
[402376379,1768669841285,-993.44,0.00012329,2]
[402376381,1768669841295,-827.87,0.00012329,2]
[402376382,1768669841304,-827.87,0.00012329,2]
[402376384,1768669841314,-551.91,0.00012329,2]
[402376386,1768669841323,-459.93,0.00012329,2]
[402376387,1768669841332,-383.27,0.00012329,2]
[402376389,1768669841342,-319.4,0.00012329,2]
[402376391,1768669841351,-266.16,0.00012329,2]
[402376392,1768669841361,-221.8,0.00012329,2]
[402376394,1768669841370,-184.84,0.00012329,2]
[402376395,1768669841380,-154.03,0.00012329,2]
[402376397,1768669841389,-770.17,0.00012329,2]
[402376399,1768669841399,-500.0,0.00012329,2]
[402376400,1768669841408,-500.0,0.00012329,2]
[402376402,1768669841418,-500.0,0.00012329,2]
[402376404,1768669841427,-500.0,0.00012329,2]
[402376405,1768669841436,-500.0,0.00012329,2]
[402376407,1768669841446,-277.93445945,0.00012329,2]
[402376409,1768669841456,-500.0,0.00012329,2]
[402376410,1768669841465,-500.0,0.00012329,2]
[402376412,1768669841476,-500.0,0.00012329,2]
[402376414,1768669841485,-500.0,0.00012329,2]
[402376415,1768669841496,-500.0,0.00012329,2]
[402376417,1768669841507,-500.0,0.00012329,2]
[402376419,1768669841517,-500.0,0.00012329,2]
[402376420,1768669841527,-450.0,0.00012329,2]
[402376422,1768669841536,-500.0,0.00012329,2]
[402376424,1768669841546,-500.0,0.00012329,2]
[402376425,1768669841555,-271.54909679,0.00012384,2]
[402376427,1768669841572,-2514.95533247,0.00012384,2]
[402376429,1768669841581,-764.0,0.00012453,2]
[402376430,1768669841591,-151.0,0.000125,2]
[402376432,1768669841603,-601.80536549,0.00012539,2]
[402376434,1768669841612,-764.0,0.0001259,2]
[402376435,1768669841622,-500.0,0.00012591,2]
[402376437,1768669841631,-151.0,0.000126,2]
[402376439,1768669841642,-151.0,0.000126,2]
[402376440,1768669841651,-151.0,0.000126,2]
[402376442,1768669841660,-151.0,0.000126,2]
[402376444,1768669841670,-151.0,0.000126,2]
[402376445,1768669841679,-151.0,0.000126,2]
[402376447,1768669841688,-151.0,0.000126,2]
[402376449,1768669841699,-151.0,0.000126,2]
[402376450,1768669841708,-151.0,0.000126,2]
[402376452,1768669841718,-151.0,0.000126,2]
[402376454,1768669841728,-151.0,0.000126,2]
[402376455,1768669841737,-151.0,0.000126,2]
[402376457,1768669841748,-151.0,0.000126,2]
[402376459,1768669841758,-151.0,0.000126,2]
[402376461,1768669841767,-151.0,0.000126,2]
[402376462,1768669841777,-151.0,0.000126,2]
[402376465,1768669841796,-151.0,0.000126,2]
[402376467,1768669841814,-151.0,0.000126,2]
[402376469,1768669841831,-151.0,0.000126,2]
[402376471,1768669841846,-151.0,0.000126,2]
[402376473,1768669841858,-500.0,0.00012617,2]
[402376475,1768669841872,-271.54909679,0.00012626,2]
[402376477,1768669841886,-271.54909679,0.00012626,2]
[402376479,1768669841900,-764.0,0.00012727,2]
[402376481,1768669841915,-764.0,0.00012864,2]
[402376483,1768669841928,-500.0,0.00012865,2]
[402376485,1768669841944,-151.0,0.00013,2]
[402376487,1768669841959,-764.0,0.00013001,2]
[402376489,1768669841972,-764.0,0.00013138,2]
[402376491,1768669841986,-494.39702115,0.00013139,2]
[402376493,1768669842002,-269.96129392,0.00013163,2]
[402376495,1768669842015,-184.6720251,0.00013173,2]
[402376497,1768669842030,-500.0,0.00013273,2]
[402376499,1768669842043,-500.0,0.00013273,2]
[402376501,1768669842056,-500.0,0.00013273,2]
[402376503,1768669842067,-500.0,0.00013273,2]
[402376504,1768669842078,-500.0,0.00013273,2]
[402376506,1768669842089,-500.0,0.00013273,2]
[402376508,1768669842104,-524.62460419,0.00013273,2]
[402376510,1768669842117,-500.0,0.00013273,2]
[402376512,1768669842131,-500.0,0.00013273,2]
[402376514,1768669842144,-576.76891952,0.00013273,2]
[402376516,1768669842157,-500.0,0.00013273,2]
[402376518,1768669842171,-500.0,0.00013273,2]
[402376520,1768669842182,-500.0,0.00013273,2]
[402376522,1768669842194,-500.0,0.00013273,2]
[402376523,1768669842205,-158.0,0.00013273,2]
[402376525,1768669842218,-500.0,0.00013273,2]
[402376527,1768669842233,-500.0,0.00013273,2]
[402376529,1768669842245,-500.0,0.00013273,2]
[402376531,1768669842256,-500.0,0.00013273,2]
[402376533,1768669842268,-500.0,0.00013273,2]
[402376535,1768669842283,-500.0,0.00013273,2]
[402376537,1768669842295,-500.0,0.00013273,2]
[402376539,1768669842307,-500.0,0.00013273,2]
[402376541,1768669842318,-500.0,0.00013273,2]
[402376542,1768669842329,-440.24648614,0.00013273,2]
[402376544,1768669842342,-500.0,0.00013273,2]
[402376546,1768669842353,-500.0,0.00013273,2]
[402376548,1768669842364,-500.0,0.00013273,2]
[402376550,1768669842375,-500.0,0.00013273,2]
[402376552,1768669842387,-500.0,0.00013273,2]
[402376554,1768669842400,-500.0,0.00013273,2]
[402376556,1768669842413,-500.0,0.00013273,2]
[402376557,1768669842426,-500.0,0.00013273,2]
[402376559,1768669842438,-779.0,0.00013275,2]
[402376561,1768669842451,-239.92258785,0.00013382,2]
[402376563,1768669842463,-823.0,0.00013469,2]
[402376565,1768669842475,-3292.0,0.00013474,2]
[402376567,1768669842493,-151.0,0.000135,2]
[402376569,1768669842506,-250.0,0.00013531,2]
[402376572,1768669842518,-239.92258785,0.00013656,2]
[402376576,1768669842530,-398.025611,0.00013673,2]
[402376578,1768669842540,-300.0,0.00013673,2]
[402376580,1768669842552,-500.0,0.00013698,2]
[402376582,1768669842567,-500.0,0.00013698,2]
[402376584,1768669842580,-500.0,0.00013698,2]
[402376586,1768669842592,-500.0,0.00013698,2]
[402376589,1768669842603,-283.56730347,0.00013698,2]
[402376591,1768669842615,-504.02212957,0.00013698,2]
[402376593,1768669842626,-500.0,0.00013698,2]
[402376595,1768669842640,-500.0,0.00013698,2]
[402376598,1768669842652,-500.0,0.00013698,2]
[402376600,1768669842663,-500.0,0.00013698,2]
[402376602,1768669842675,-500.0,0.00013698,2]
[402376604,1768669842687,-500.0,0.00013698,2]
[402376606,1768669842698,-500.0,0.00013698,2]
[402376608,1768669842709,-500.0,0.00013698,2]
[402376609,1768669842720,-500.0,0.00013698,2]
[402376610,1768669842731,-500.0,0.00013698,2]
[402376611,1768669842742,-500.0,0.00013698,2]
[402376612,1768669842754,-500.0,0.00013698,2]
[402376613,1768669842766,-500.0,0.00013698,2]
[402376614,1768669842777,-500.0,0.00013698,2]
[402376615,1768669842789,-500.0,0.00013698,2]
[402376616,1768669842801,-649.34424817,0.00013698,2]
[402376617,1768669842813,-500.0,0.00013698,2]
[402376618,1768669842826,-500.0,0.00013698,2]
[402376619,1768669842838,-500.0,0.00013698,2]
[402376620,1768669842850,-500.0,0.00013698,2]
[402376621,1768669842861,-500.0,0.00013698,2]
[402376622,1768669842873,-500.0,0.00013698,2]
[402376623,1768669842884,-500.0,0.00013698,2]
[402376624,1768669842896,-500.0,0.00013698,2]
[402376625,1768669842908,-500.0,0.00013698,2]
[402376626,1768669842920,-500.0,0.00013698,2]
[402376627,1768669842932,-500.0,0.00013698,2]
[402376628,1768669842944,-500.0,0.00013698,2]
[402376629,1768669842955,-500.0,0.00013698,2]
[402376630,1768669842967,-500.0,0.00013698,2]
[402376631,1768669842978,-500.0,0.00013698,2]
[402376632,1768669842990,-500.0,0.00013698,2]
[402376633,1768669843001,-500.0,0.00013698,2]
[402376634,1768669843012,-500.0,0.00013698,2]
[402376635,1768669843024,-500.0,0.00013698,2]
[402376636,1768669843035,-500.0,0.00013698,2]
[402376637,1768669843047,-500.0,0.00013698,2]
[402376638,1768669843058,-500.0,0.00013698,2]
[402376639,1768669843069,-500.0,0.00013698,2]
[402376640,1768669843080,-500.0,0.00013698,2]
[402376641,1768669843092,-500.0,0.00013698,2]
[402376642,1768669843103,-500.0,0.00013698,2]
[402376643,1768669843115,-500.0,0.00013698,2]
[402376644,1768669843126,-611.38007014,0.00013698,2]
[402376646,1768669843138,-500.0,0.00013698,2]
[402376647,1768669843149,-500.0,0.00013698,2]
[402376648,1768669843160,-500.0,0.00013698,2]
[402376649,1768669843172,-500.0,0.00013698,2]
[402376651,1768669843183,-500.0,0.00013698,2]
[402376652,1768669843194,-500.0,0.00013698,2]
[402376653,1768669843205,-500.0,0.00013698,2]
[402376654,1768669843216,-500.0,0.00013698,2]
[402376657,1768669843228,-582.50112986,0.00013698,2]
[402376659,1768669843239,-500.0,0.00013698,2]
[402376661,1768669843250,-500.0,0.00013698,2]
[402376663,1768669843262,-500.0,0.00013698,2]
[402376666,1768669843274,-500.0,0.00013698,2]
[402376668,1768669843286,-520.97489012,0.00013698,2]
[402376670,1768669843297,-567.1775226,0.00013698,2]
[402376672,1768669843309,-975.4,0.00013698,2]
[402376675,1768669843323,-975.4,0.00013698,2]
[402376677,1768669843338,-975.4,0.00013698,2]
[402376680,1768669843350,-975.4,0.00013698,2]
[402376682,1768669843362,-975.4,0.00013698,2]
[402376684,1768669843373,-975.4,0.00013698,2]
[402376686,1768669843385,-975.4,0.00013698,2]
[402376689,1768669843397,-975.4,0.00013698,2]
[402376691,1768669843408,-975.4,0.00013698,2]
[402376693,1768669843419,-975.4,0.00013698,2]
[402376695,1768669843431,-975.4,0.00013698,2]
[402376698,1768669843442,-975.4,0.00013698,2]
[402376700,1768669843454,-975.4,0.00013698,2]
[402376702,1768669843465,-975.4,0.00013698,2]
[402376704,1768669843476,-975.4,0.00013698,2]
[402376706,1768669843487,-975.4,0.00013698,2]
[402376709,1768669843499,-975.4,0.00013698,2]
[402376711,1768669843509,-975.4,0.00013698,2]
[402376713,1768669843520,-975.4,0.00013698,2]
[402376715,1768669843533,-975.4,0.00013698,2]
[402376718,1768669843545,-975.4,0.00013698,2]
[402376720,1768669843558,-975.4,0.00013698,2]
[402376722,1768669843573,-975.4,0.00013698,2]
[402376724,1768669843584,-975.56822598,0.00013698,2]
[402376727,1768669843595,-567.7923432,0.00013698,2]
[402376729,1768669843607,-500.0,0.00013698,2]
[402376731,1768669843619,-500.0,0.00013698,2]
[402376733,1768669843632,-500.0,0.00013698,2]
[402376736,1768669843644,-505.79259852,0.00013698,2]
[402376738,1768669843656,-1000.0,0.00013698,2]
[402376740,1768669843668,-1000.0,0.00013698,2]
[402376743,1768669843680,-1000.0,0.00013698,2]
[402376745,1768669843691,-1000.0,0.00013698,2]
[402376747,1768669843703,-1000.0,0.00013698,2]
[402376749,1768669843715,-1000.0,0.00013698,2]
[402376752,1768669843727,-1000.0,0.00013698,2]
[402376754,1768669843740,-500.0,0.00013698,2]
[402376756,1768669843751,-1019.17213815,0.00013698,2]
[402376758,1768669843763,-500.0,0.00013698,2]
[402376761,1768669843775,-500.0,0.00013698,2]
[402376763,1768669843788,-500.0,0.00013698,2]
[402376765,1768669843800,-500.0,0.00013698,2]
[402376768,1768669843812,-500.0,0.00013698,2]
[402376770,1768669843823,-500.0,0.00013698,2]
[402376772,1768669843835,-500.0,0.00013698,2]
[402376774,1768669843846,-500.0,0.00013698,2]
[402376777,1768669843858,-500.0,0.00013698,2]
[402376779,1768669843869,-500.0,0.00013698,2]
[402376781,1768669843881,-500.0,0.00013698,2]
[402376783,1768669843892,-619.57929462,0.00013698,2]
[402376785,1768669843904,-500.0,0.00013698,2]
[402376788,1768669843916,-500.0,0.00013698,2]
[402376790,1768669843927,-500.0,0.00013698,2]
[402376792,1768669843939,-500.0,0.00013698,2]
[402376794,1768669843950,-500.0,0.00013698,2]
[402376797,1768669843962,-500.0,0.00013698,2]
[402376799,1768669843973,-500.0,0.00013698,2]
[402376801,1768669843986,-500.0,0.00013698,2]
[402376803,1768669843997,-500.0,0.00013698,2]
[402376805,1768669844009,-500.0,0.00013698,2]
[402376808,1768669844021,-162.00907998,0.00013698,2]
[402376810,1768669844032,-1974.72,0.00013698,2]
[402376813,1768669844047,-1974.72,0.00013698,2]
[402376815,1768669844059,-1974.72,0.00013698,2]
[402376817,1768669844071,-1974.72,0.00013698,2]
[402376819,1768669844082,-1974.72,0.00013698,2]
[402376822,1768669844093,-1974.72,0.00013698,2]
[402376824,1768669844105,-1974.72,0.00013698,2]
[402376826,1768669844116,-1974.72,0.00013698,2]
[402376828,1768669844128,-1974.72,0.00013698,2]
[402376831,1768669844141,-1974.72,0.00013698,2]
[402376833,1768669844152,-1974.72,0.00013698,2]
[402376835,1768669844163,-1974.72,0.00013698,2]
[402376837,1768669844175,-1974.72,0.00013698,2]
[402376840,1768669844186,-1974.72,0.00013698,2]
[402376842,1768669844197,-1974.72,0.00013698,2]
[402376844,1768669844208,-1974.72,0.00013698,2]
[402376846,1768669844220,-1974.72,0.00013698,2]
[402376849,1768669844231,-1974.72,0.00013698,2]
[402376851,1768669844243,-1974.72,0.00013698,2]
[402376853,1768669844254,-1974.72,0.00013698,2]
[402376855,1768669844265,-1974.72,0.00013698,2]
[402376857,1768669844276,-1974.72,0.00013698,2]
[402376859,1768669844287,-1974.72,0.00013698,2]
[402376862,1768669844299,-1974.90222486,0.00013698,2]
[402376864,1768669844310,-134320.3669689,0.00013699,2]
[402376866,1768669844321,-500.0,0.00013699,2]
[402376868,1768669844331,-500.0,0.00013699,2]
[402376870,1768669844343,-500.0,0.00013699,2]
[402376873,1768669844353,-500.0,0.00013699,2]
[402376875,1768669844364,-500.0,0.00013699,2]
[402376877,1768669844375,-500.0,0.00013699,2]
[402376879,1768669844386,-186.53198003,0.00013699,2]
[402376881,1768669844398,-501.82620036,0.00013699,2]
[402376884,1768669844409,-500.0,0.00013699,2]
[402376886,1768669844421,-622.93942038,0.00013699,2]
[402376888,1768669844432,-500.0,0.00013699,2]
[402376890,1768669844444,-313.78216061,0.00013699,2]
[402376893,1768669844457,-500.0,0.00013699,2]
[402376895,1768669844467,-500.0,0.00013699,2]
[402376897,1768669844476,-500.0,0.00013699,2]
[402376899,1768669844486,-500.0,0.00013699,2]
[402376901,1768669844494,-500.0,0.00013699,2]
[402376903,1768669844503,-500.0,0.00013699,2]
[402376905,1768669844513,-502.61209366,0.00013699,2]
[402376907,1768669844522,-198.2,0.00013699,2]
[402376909,1768669844531,-155.0,0.00013699,2]
[402376911,1768669844541,-158.0,0.00013699,2]
[402376913,1768669844550,-319.988793,0.00013699,2]
[402376915,1768669844562,-500.0,0.00013699,2]
[402376917,1768669844572,-238.2,0.00013699,2]
[402376919,1768669844582,-158.0,0.00013699,2]
[402376921,1768669844591,-500.0,0.00013699,2]
[402376968,1768669844899,-500.0,0.00013699,2]
[402376973,1768669845049,-500.0,0.00013699,2]
[402376977,1768669845074,-500.0,0.00013699,2]
[402376980,1768669845088,-158.0,0.00013699,2]
[402376982,1768669845098,-500.0,0.00013699,2]
[402376984,1768669845107,-500.0,0.00013699,2]
[402376986,1768669845116,-158.0,0.00013699,2]
[402376987,1768669845125,-500.0,0.00013699,2]
[402376989,1768669845135,-160.0,0.00013699,2]
[402376991,1768669845144,-158.2,0.00013699,2]
[402376993,1768669845154,-158.0,0.00013699,2]
[402376995,1768669845163,-238.0,0.00013699,2]
[402376997,1768669845172,-250.52997418,0.00013699,2]
[402376999,1768669845181,-500.0,0.00013699,2]
[402377001,1768669845190,-500.0,0.00013699,2]
[402377003,1768669845199,-500.0,0.00013699,2]
[402377005,1768669845208,-500.0,0.00013699,2]
[402377007,1768669845217,-500.0,0.00013699,2]
[402377009,1768669845226,-260.20000005,0.00013699,2]
[402377011,1768669845236,-500.0,0.00013699,2]
[402377014,1768669845247,-500.0,0.00013699,2]
[402377016,1768669845256,-500.0,0.00013699,2]
[402377018,1768669845266,-500.0,0.00013699,2]
[402377020,1768669845275,-500.0,0.00013699,2]
[402377022,1768669845286,-160.0,0.00013699,2]
[402377024,1768669845295,-500.0,0.00013699,2]
[402377026,1768669845303,-500.0,0.00013699,2]
[402377028,1768669845313,-207.07964308,0.00013699,2]
[402377030,1768669845322,-502.83955258,0.00013821,2]
[402377032,1768669845331,-505.25947973,0.00013821,2]
[402377035,1768669845342,-453.71259255,0.00013821,2]
[402377037,1768669845351,-1000.0,0.00013821,2]
[402377039,1768669845360,-166.45896527,0.00013821,2]
[402377041,1768669845369,-1000.0,0.00013821,2]
[402377043,1768669845379,-1000.0,0.00013821,2]
[402377045,1768669845388,-1000.0,0.00013821,2]
[402377047,1768669845397,-1000.0,0.00013821,2]
[402377049,1768669845406,-1000.0,0.00013821,2]
[402377051,1768669845415,-601.16084877,0.00013821,2]
[402377053,1768669845423,-1000.0,0.00013821,2]
[402377055,1768669845433,-1000.0,0.00013821,2]
[402377057,1768669845442,-374.47725203,0.00013821,2]
[402377058,1768669845452,-522.04357159,0.00013821,2]
[402377060,1768669845461,-1000.0,0.00013821,2]
[402377062,1768669845470,-1000.0,0.00013821,2]
[402377064,1768669845480,-1000.0,0.00013821,2]
[402377066,1768669845489,-505.69222847,0.00013821,2]
[402377068,1768669845498,-1000.0,0.00013821,2]
[402377070,1768669845507,-1000.0,0.00013821,2]
[402377072,1768669845516,-1062.42957287,0.00013821,2]
[402377074,1768669845525,-356.79031469,0.00013901,2]
[402377076,1768669845534,-184.67202506,0.00013903,2]
[402377078,1768669845543,-199.93548987,0.00013985,7]
[402377080,1768669845554,-151.0,0.00014,2]
[402377082,1768669845567,-263.30228,0.00014006,2]
[402377084,1768669845577,-263.30228,0.00014006,2]
[402377086,1768669845587,-263.30228,0.00014006,2]
[402377088,1768669845596,-263.30228,0.00014006,2]
[402377090,1768669845607,-151.0,0.00014152,2]
[402377092,1768669845616,-151.0,0.00014152,2]
[402377094,1768669845626,-151.0,0.00014152,2]
[402377096,1768669845635,-100000.0,0.00014152,2]
[402377098,1768669845644,-1000.0,0.000142,2]
[402377100,1768669845654,-1000.0,0.000142,2]
[402377102,1768669845663,-1000.0,0.000142,2]
[402377104,1768669845672,-1000.0,0.000142,2]
[402377107,1768669845687,-1000.0,0.000142,2]
[402377108,1768669845697,-1000.0,0.000142,2]
[402377110,1768669845707,-1000.0,0.000142,2]
[402377112,1768669845716,-1000.0,0.000142,2]
[402377115,1768669845726,-1000.0,0.000142,2]
[402377116,1768669845734,-547.485748,0.000142,2]
[402377118,1768669845743,-600.0,0.00014221,2]
[402377120,1768669845752,-310.63775509,0.00014247,2]
[402377123,1768669845762,-587.52830239,0.00014247,2]
[402377124,1768669845772,-1000.0,0.00014247,2]
[402377126,1768669845781,-502.15537152,0.00014247,2]
[402377128,1768669845791,-194.1362209,0.00014247,2]
[402377130,1768669845800,-1000.0,0.00014247,2]
[402377132,1768669845809,-1000.0,0.00014247,2]
[402377134,1768669845819,-250.0,0.00014247,2]
[402377137,1768669845829,-1000.0,0.00014247,2]
[402377138,1768669845839,-431.73453214,0.00014247,2]
[402377140,1768669845848,-748.3708511,0.00014247,2]
[402377143,1768669845859,-1000.0,0.00014247,2]
[402377145,1768669845869,-1000.0,0.00014247,2]
[402377147,1768669845879,-1000.0,0.00014247,2]
[402377149,1768669845888,-1083.81618829,0.00014247,2]
[402377151,1768669845898,-186.7596,0.00014247,2]
[402377153,1768669845907,-1000.0,0.00014247,2]
[402377155,1768669845917,-1002.84499725,0.00014247,2]
[402377157,1768669845927,-500.85672121,0.00014247,2]
[402377159,1768669845936,-502.90945713,0.00014247,2]
[402377161,1768669845945,-1000.0,0.00014247,2]
[402377163,1768669845955,-1097.74982003,0.00014247,2]
[402377165,1768669845964,-1000.0,0.00014247,2]
[402377167,1768669845973,-1000.0,0.00014247,2]
[402377169,1768669845983,-1000.0,0.00014247,2]
[402377171,1768669845992,-1000.0,0.00014247,2]
[402377173,1768669846002,-505.85156425,0.00014247,2]
[402377174,1768669846012,-1140.95571878,0.00014247,2]
[402377175,1768669846021,-920.73215922,0.00014247,2]
[402377176,1768669846030,-1000.0,0.00014247,2]
[402377177,1768669846040,-505.35037186,0.00014247,2]
[402377178,1768669846049,-1000.0,0.00014247,2]
[402377179,1768669846058,-500.43334725,0.00014247,2]
[402377180,1768669846067,-1000.0,0.000143,2]
[402377181,1768669846076,-1500.0,0.00014368,2]
[402377182,1768669846085,-1500.0,0.00014368,2]
[402377183,1768669846094,-1500.0,0.00014368,2]
[402377184,1768669846103,-500.85139614,0.00014368,2]
[402377185,1768669846112,-1500.0,0.00014368,2]
[402377186,1768669846121,-1500.0,0.00014368,2]
[402377187,1768669846131,-1500.0,0.00014368,2]
[402377188,1768669846139,-1500.0,0.00014368,2]
[402377189,1768669846148,-1470.89070314,0.00014368,2]
[402377190,1768669846157,-500.0,0.00014368,2]
[402377191,1768669846166,-500.0,0.00014368,2]
[402377192,1768669846175,-1500.0,0.00014368,2]
[402377193,1768669846184,-1500.0,0.00014368,2]
[402377194,1768669846194,-151.0,0.000145,2]
[402377195,1768669846203,-807.265744,0.000145,7]
[402377197,1768669846212,-5000.0,0.0001451,2]
[402377198,1768669846222,-184.67202506,0.00014633,2]
[402377200,1768669846231,-900.0,0.00014768,2]
[402377202,1768669846241,-660.83132082,0.00014795,2]
[402377204,1768669846255,-1493.74297815,0.00014795,2]
[402377206,1768669846268,-201.38164885,0.00014795,2]
[402377208,1768669846281,-1500.0,0.00014795,2]
[402377210,1768669846292,-166.91973232,0.00014795,2]
[402377212,1768669846301,-519.10615049,0.00014795,2]
[402377214,1768669846310,-648.13731473,0.00014795,2]
[402377216,1768669846320,-1500.0,0.00014795,2]
[402377218,1768669846330,-1500.0,0.00014795,2]
[402377220,1768669846340,-502.31117812,0.00014795,2]
[402377222,1768669846349,-1500.0,0.00014795,2]
[402377224,1768669846359,-1500.0,0.00014795,2]
[402377226,1768669846369,-1500.0,0.00014795,2]
[402377228,1768669846378,-8425.104036,0.00014795,7]
[402377230,1768669846388,-1500.0,0.00014795,2]
[402377232,1768669846397,-1500.0,0.00014795,2]
[402377234,1768669846407,-1152.0,0.00014814,2]
[402377236,1768669846416,-2000.0,0.00014916,2]
[402377238,1768669846426,-2000.0,0.00014916,2]
[402377240,1768669846436,-504.04282277,0.00014916,2]
[402377242,1768669846446,-500.0,0.00014916,2]
[402377244,1768669846455,-2000.0,0.00014916,2]
[402377246,1768669846464,-2000.0,0.00014916,2]
[402377248,1768669846474,-2000.0,0.00014916,2]
[402377250,1768669846484,-500.0,0.00014916,2]
[402377252,1768669846495,-1504.15629489,0.00014916,2]
[402377254,1768669846504,-151.0,0.00015,2]
[402377256,1768669846514,-189.2612356,0.00015004,2]
[402377258,1768669846523,-10000.0,0.00015057,2]
[402377260,1768669846533,-1308.98,0.00015057,2]
[402377262,1768669846543,-360.326425,0.00015068,2]
[402377264,1768669846552,-10000.0,0.00015114,2]
[402377266,1768669846565,-10000.0,0.00015114,2]
[402377268,1768669846575,-10000.0,0.00015114,2]
[402377270,1768669846584,-2317.5,0.00015114,2]
[402377272,1768669846594,-1200.0,0.00015316,2]
[402377274,1768669846605,-2000.0,0.00015342,2]